bitfinex/quotes_ETHUSD_20250422
["timestamp","ask_amount","ask_price","bid_price","bid_amount"]
[1745357811541,0.55,1718.1,1717.2,0.6538]
[1745357811774,5.8217684,1717.7,1717.2,0.6538]
[1745357811982,5.82287178,1717.4,1717.0,0.4083975]
[1745357812194,5.82297822,1717.4,1717.0,0.4083975]
[1745357812357,5.82331455,1717.3,1717.0,0.4083975]
[1745357812858,5.8235012,1717.2,1717.0,0.4083975]
[1745357813058,5.82331455,1717.3,1717.0,0.4083975]
[1745357813059,5.82326983,1717.3,1717.0,0.4083975]
[1745357813283,5.82368868,1717.2,1717.0,0.4083975]
[1745357813698,6.98790935,1717.3,1717.0,0.4083975]
[1745357813990,5.82362805,1717.2,1717.0,0.4083975]
[1745357814287,5.82377263,1717.1,1717.0,0.4083975]
[1745357815150,6.37377263,1717.1,1717.0,0.4083975]
[1745357815350,7.04351451,1717.1,1717.0,0.4083975]
[1745357816256,10.59351451,1717.1,1717.0,0.4083975]
[1745357816452,10.04351451,1717.1,1717.0,0.4083975]
[1745357817087,10.04351451,1717.1,1715.9,0.05826438]
[1745357817088,11.41951451,1717.1,1715.9,0.6538]
[1745357817291,11.41951451,1717.1,1715.9,1.08405101]
[1745357817292,9.232,1717.0,1715.9,1.08405101]
[1745357817472,5.82497828,1716.8,1715.9,1.14232581]
[1745357817671,5.82514997,1716.7,1715.9,1.14232581]
[1745357817976,0.9232,1716.9,1716.0,0.6538]
[1745357818174,1.12842349,1717.4,1716.3,0.6538]
[1745357818377,5.82339395,1717.3,1716.3,0.6538]
[1745357818547,0.5823394,1717.2,1716.4,0.55]
[1745357818747,0.826,1717.4,1716.4,0.6538]
[1745357819101,6.64877107,1717.4,1716.4,0.6538]
[1745357819417,8.682,1717.5,1716.6,0.6538]
[1745357819694,8.682,1717.5,1716.5,3.55]
[1745357819904,14.50463322,1717.5,1716.8,0.6538]
[1745357820076,8.682,1717.5,1716.8,0.6538]
[1745357820609,5.8237451,1717.2,1716.8,0.6538]
[1745357820814,5.82312479,1717.3,1716.8,0.6538]
[1745357820982,5.823125,1717.3,1716.8,0.6538]
[1745357821377,5.8234658,1717.2,1716.8,0.6538]
[1745357821769,5.82326851,1717.3,1716.8,0.6538]
[1745357822096,14.50454701,1717.5,1716.8,0.6538]
[1745357822304,6.1,1717.5,1716.8,0.6538]
[1745357822506,6.1,1717.5,1716.5,3.55]
[1745357822507,6.12290643,1718.1,1717.0,0.6538]
[1745357822681,5.82161627,1717.8,1717.0,0.6538]
[1745357823004,5.8219036,1717.7,1717.0,0.6538]
[1745357823303,5.82160964,1717.8,1717.0,1.09760867]
[1745357823907,5.82207731,1717.6,1717.1,0.31585839]
[1745357824211,5.82580833,1716.5,1716.4,0.6538]
[1745357824378,5.82557731,1716.6,1715.9,0.6538]
[1745357824707,5.82564742,1716.6,1715.9,0.6538]
[1745357824899,6.99074427,1716.6,1715.9,0.6538]
[1745357825408,1.16509685,1716.6,1715.9,0.6538]
[1745357825580,8.801,1717.3,1716.3,0.6538]
[1745357825773,14.62420687,1717.3,1716.3,0.6538]
[1745357826101,8.801,1717.3,1716.4,0.6538]
[1745357826700,8.801,1717.3,1716.3,3.0]
[1745357826913,8.801,1717.3,1716.5,0.55]
[1745357827113,5.82246143,1717.5,1716.6,0.6538]
[1745357827416,15.44920547,1717.6,1716.6,0.6538]
[1745357827807,8.801,1717.6,1716.8,0.6538]
[1745357828122,6.926,1717.5,1716.1,0.44632881]
[1745357828315,5.82388057,1717.1,1716.2,0.6538]
[1745357828617,5.82351491,1717.2,1716.2,0.6538]
[1745357829387,16.62860093,1717.5,1716.2,0.6538]
[1745357829614,5.82368259,1717.2,1716.2,0.6538]
[1745357829819,11.9237147,1717.2,1716.2,0.6538]
[1745357830019,6.1,1717.4,1716.4,6.47972475]
[1745357830240,8.801,1717.6,1716.9,0.55]
[1745357830385,8.801,1718.1,1717.2,0.6538]
[1745357830587,9.6811,1718.1,1717.4,0.6538]
[1745357830782,19.198,1718.5,1717.4,0.6538]
[1745357831521,19.198,1718.5,1717.6,0.6538]
[1745357831931,19.18594916,1718.5,1717.6,0.6538]
[1745357832587,5.81948913,1718.4,1717.6,0.6538]
[1745357832826,19.18594916,1718.5,1717.6,0.6538]
[1745357833032,9.10338486,1718.6,1717.6,3.0]
[1745357833318,9.10338486,1718.6,1717.7,0.6538]
[1745357833319,0.30238486,1718.6,1717.7,0.6538]
[1745357833519,5.81949664,1718.4,1717.7,0.6538]
[1745357833817,11.63917588,1718.4,1717.7,0.6538]
[1745357834022,5.81981193,1718.3,1717.7,0.6538]
[1745357834218,0.58198119,1718.2,1717.7,0.6538]
[1745357834423,0.58198119,1718.2,1716.7,0.6538]
[1745357834424,5.82250746,1717.5,1716.7,0.6538]
[1745357834627,5.82510522,1716.8,1716.6,0.01252915]
[1745357834834,5.82493102,1716.8,1716.6,0.01252915]
[1745357834994,11.64999156,1716.8,1716.6,0.01252915]
[1745357835192,5.8251296,1716.7,1716.6,0.01252915]
[1745357835431,0.7947,1717.3,1716.6,0.01252915]
[1745357835634,33.81893845,1717.4,1716.6,0.01252915]
[1745357835788,8.8,1717.4,1716.7,0.6538]
[1745357835989,0.7947,1717.9,1716.8,0.55]
[1745357836294,9.065,1718.0,1717.1,0.6538]
[1745357836839,5.82342368,1717.3,1716.9,0.316433]
[1745357836995,5.82359441,1717.2,1716.9,0.316433]
[1745357837188,5.82381576,1717.1,1716.9,0.316433]
[1745357837393,5.82365667,1717.2,1716.7,0.6538]
[1745357837595,5.82329789,1717.3,1716.7,0.6538]
[1745357837905,7.89441821,1717.3,1716.7,0.6538]
[1745357838308,7.89450402,1717.3,1716.7,0.6538]
[1745357838516,2.07112032,1717.3,1716.7,0.6538]
[1745357838695,9.065,1717.4,1716.7,0.6538]
[1745357838892,25.70274365,1718.1,1716.8,1.2038]
[1745357838893,9.065,1717.9,1716.8,1.2038]
[1745357839239,9.05616926,1717.9,1717.1,0.55]
[1745357839445,9.05616926,1717.9,1717.2,0.6538]
[1745357839743,9.05616926,1717.9,1717.3,0.6538]
[1745357839924,9.05616926,1717.9,1717.3,1.05084352]
[1745357840441,9.05616926,1717.9,1717.4,0.31663524]
[1745357841108,9.05616926,1717.9,1717.3,1.05084352]
[1745357842411,9.05616926,1717.9,1717.3,0.6538]
[1745357843235,11.92056066,1718.1,1717.3,0.6538]
[1745357843442,6.1,1718.1,1717.3,0.6538]
[1745357843815,6.68198119,1718.2,1717.3,0.6538]
[1745357844043,6.68198119,1718.2,1717.2,8.82327598]
[1745357844044,9.8587,1718.4,1717.5,0.6538]
[1745357844640,15.67808328,1718.4,1717.5,0.6538]
[1745357844809,9.8587,1718.4,1717.5,0.6538]
[1745357845013,19.195,1718.8,1717.7,0.6538]
[1745357845236,7.73785489,1718.7,1717.7,0.6538]
[1745357845616,1.9195,1718.7,1717.7,0.6538]
[1745357846046,1.9195,1718.7,1717.9,0.6538]
[1745357846445,19.195,1718.8,1718.7,0.00793116]
[1745357847113,5.82066997,1718.1,1717.8,0.6538]
[1745357847410,5.8196068,1718.4,1717.8,0.6538]
[1745357847611,0.55,1718.6,1717.8,0.6538]
[1745357847811,5.81835107,1718.7,1717.8,0.6538]
[1745357848032,2.50133511,1718.7,1717.8,0.6538]
[1745357848443,8.3198123,1718.7,1717.8,0.6538]
[1745357848649,14.13846668,1718.7,1717.8,0.6538]
[1745357848818,5.81869006,1718.6,1717.8,0.6538]
[1745357849151,2.50133511,1718.7,1718.0,0.6538]
[1745357849356,19.195,1718.8,1718.0,0.6538]
[1745357850046,11.6344858,1719.1,1718.0,0.6538]
[1745357850251,5.81688223,1719.2,1718.2,0.6538]
[1745357850750,9.063,1719.4,1718.2,0.6538]
[1745357851153,5.8169526,1719.2,1718.2,0.6538]
[1745357851318,0.58169526,1719.1,1718.3,0.6538]
[1745357851920,5.81684983,1719.2,1718.3,0.6538]
[1745357853363,11.6337769,1719.2,1718.3,0.6538]
[1745357853530,20.69407635,1719.3,1718.3,0.6538]
[1745357853717,5.81677493,1719.2,1718.3,0.6538]
[1745357854360,11.6336897,1719.2,1718.3,0.6538]
[1745357854567,6.98050294,1719.1,1718.3,0.6538]
[1745357855738,6.98047759,1719.1,1718.3,0.6538]
[1745357855937,13.08047759,1719.1,1718.3,0.6538]
[1745357856997,1.16336897,1719.1,1718.3,0.6538]
[1745357857273,20.97742052,1719.3,1718.3,0.6538]
[1745357857428,26.79399897,1719.3,1718.3,0.6538]
[1745357857633,20.97742052,1719.3,1718.3,0.55]
[1745357859027,20.97746078,1719.3,1718.3,0.55]
[1745357859231,2.09774608,1719.2,1718.3,0.55]
[1745357859573,2.09774608,1719.2,1718.2,0.56918]
[1745357859776,5.81632759,1719.3,1718.3,3.0]
[1745357860076,5.81609399,1719.4,1718.3,3.0]
[1745357860573,5.81609399,1719.4,1718.3,8.81955825]
[1745357861471,11.63232967,1719.4,1718.3,3.0]
[1745357861675,5.8158346,1719.5,1718.3,8.81952762]
[1745357861976,6.39772849,1719.4,1718.5,0.55]
[1745357862176,0.58158346,1719.4,1718.5,0.55]
[1745357862337,8.796,1719.6,1718.8,5.81796905]
[1745357862538,8.796,1719.6,1718.9,3.55]
[1745357862760,8.796,1719.6,1718.8,3.55]
[1745357863146,8.796,1719.6,1718.8,9.36799397]
[1745357863543,8.796,1719.6,1718.8,9.36778675]
[1745357863743,8.796,1719.6,1719.0,0.55]
[1745357864463,5.81380007,1720.1,1719.0,0.55]
[1745357864671,14.60815897,1720.0,1719.0,0.55]
[1745357864868,14.60805853,1720.0,1719.0,0.55]
[1745357865080,8.794,1720.0,1719.0,3.55]
[1745357865282,16.06878013,1720.0,1719.1,0.355]
[1745357865760,10.25478204,1720.0,1719.1,0.355]
[1745357865952,1.46078204,1720.0,1719.1,0.79160293]
[1745357866158,8.794,1720.0,1719.0,3.55]
[1745357866687,8.794,1720.0,1719.0,3.0]
[1745357866873,5.81444876,1719.9,1719.0,3.0]
[1745357867187,3.0,1719.7,1717.8,0.29384687]
[1745357867484,0.36630585,1719.6,1718.1,6.50674365]
[1745357867646,5.81644512,1719.3,1718.1,6.94125465]
[1745357867852,0.06630585,1719.2,1718.2,0.31486852]
[1745357868061,0.06630585,1719.2,1718.3,0.55]
[1745357868259,0.06630585,1719.2,1718.2,3.0]
[1745357868666,0.06630585,1719.2,1718.2,8.81974733]
[1745357868853,0.06630585,1719.3,1718.3,1.43197473]
[1745357869186,0.06630585,1719.3,1718.3,4.74727604]
[1745357869774,0.06630585,1719.3,1718.4,0.31530131]
[1745357869973,5.81510389,1719.7,1718.8,0.55]
[1745357870187,0.64781624,1719.6,1718.8,0.905]
[1745357870389,0.06630585,1719.6,1718.8,0.905]
[1745357870555,0.06630585,1719.6,1718.9,0.05816468]
[1745357870758,0.06630585,1719.6,1718.8,0.905]
[1745357871065,0.06630585,1719.7,1718.8,0.905]
[1745357871655,0.06630585,1719.7,1718.9,0.31539771]
[1745357872787,0.06630585,1719.7,1718.8,3.55]
[1745357872788,0.06630585,1719.7,1719.0,0.31539771]
[1745357873986,0.06630585,1719.7,1719.1,0.55]
[1745357874594,0.06630585,1719.7,1718.9,0.55]
[1745357875563,5.81549668,1719.6,1719.0,0.31587576]
[1745357875764,12.56362165,1719.5,1719.0,0.31587576]
[1745357875976,5.81599896,1719.4,1719.0,0.31587576]
[1745357876153,5.81599896,1719.4,1718.3,21.68713801]
[1745357876154,0.06630585,1719.4,1718.3,15.86771838]
[1745357876360,0.06630585,1719.4,1718.3,21.68725748]
[1745357876565,0.06630585,1719.4,1718.4,3.0]
[1745357876788,7.72029684,1719.4,1718.5,0.3]
[1745357876998,7.72029684,1719.4,1718.6,0.31617405]
[1745357877406,1.90427142,1719.4,1718.7,0.37434955]
[1745357877704,7.72040381,1719.4,1718.7,0.31617405]
[1745357878068,0.30205488,1719.3,1718.7,0.31617405]
[1745357878268,0.06630585,1719.2,1718.7,0.31617405]
[1745357878898,1.10430075,1719.3,1718.7,0.31617405]
[1745357878899,0.36836073,1719.3,1718.7,0.31617405]
[1745357879277,0.06630585,1719.4,1718.7,0.31617405]
[1745357879685,6.1,1719.5,1718.7,0.31617405]
[1745357879896,0.06630585,1719.4,1718.7,0.31617405]
[1745357880101,0.68293644,1719.4,1718.7,0.31617405]
[1745357881278,12.59912056,1719.4,1718.7,0.31617405]
[1745357881484,5.81644217,1719.3,1718.7,0.31617405]
[1745357881698,0.06630585,1719.2,1718.7,0.31617405]
[1745357881911,0.06630585,1719.2,1718.5,0.31617405]
[1745357882217,0.65458065,1719.2,1718.5,0.31617405]
[1745357882415,14.95034226,1719.2,1718.5,0.31617405]
[1745357882716,9.0672748,1719.2,1718.5,0.31617405]
[1745357882902,0.06630585,1719.3,1718.7,0.55]
[1745357883078,0.06630585,1719.5,1718.7,0.55]
[1745357883283,0.06630585,1719.5,1718.8,0.05816692]
[1745357883487,0.68293644,1719.5,1718.7,0.55]
[1745357883824,0.06630585,1719.6,1718.9,0.31617405]
[1745357884120,0.06630585,1719.6,1719.0,3.05815907]
[1745357884324,0.06630585,1719.8,1719.0,3.31617405]
[1745357884482,0.06630585,1719.8,1719.1,0.31617405]
[1745357885993,0.06630585,1719.8,1718.9,0.31617405]
[1745357886198,0.68293644,1719.8,1719.0,0.05815914]
[1745357886610,0.06630585,1719.8,1719.1,0.86617405]
[1745357887488,0.06630585,1719.8,1719.2,0.31617405]
[1745357889129,0.06630585,1719.8,1719.3,0.31617405]
[1745357889900,0.06630585,1719.9,1719.3,0.31617405]
[1745357890231,0.06630585,1719.9,1719.1,3.55]
[1745357890232,0.06630585,1719.9,1719.2,0.31617405]
[1745357890394,0.06630585,1719.9,1719.2,0.70279145]
[1745357890816,0.06630585,1719.9,1719.3,0.31617405]
[1745357892735,0.06630585,1719.9,1719.1,3.45279145]
[1745357893431,0.06630585,1719.9,1719.0,3.0]
[1745357893633,1.99043644,1719.9,1719.1,0.3]
[1745357894852,1.99043644,1719.9,1719.1,0.85]
[1745357896337,0.06630585,1719.9,1719.1,0.85]
[1745357896946,0.06630585,1719.9,1719.2,0.05815273]
[1745357897714,0.0594734,1719.9,1719.2,0.05815273]
[1745357898049,6.1,1720.1,1719.4,9.3656952]
[1745357898347,6.1594734,1720.5,1719.6,3.55]
[1745357898550,7.57052074,1720.5,1719.7,0.41313765]
[1745357898840,7.57052074,1720.5,1719.7,0.355]
[1745357899045,7.57052074,1720.5,1719.8,0.058138]
[1745357899221,6.1594734,1720.5,1719.8,3.48567384]
[1745357899422,6.1,1721.1,1720.1,15.93313354]
[1745357899654,0.0594734,1721.0,1720.1,23.88405715]
[1745357899812,0.0594734,1721.1,1720.2,3.55]
[1745357900151,0.0594734,1721.1,1720.2,3.98145659]
[1745357900355,0.67542074,1721.1,1720.2,6.41301057]
[1745357900561,0.0594734,1721.1,1720.5,3.55]
[1745357900763,6.1594734,1721.4,1720.5,9.3622623]
[1745357901057,6.1594734,1721.4,1720.8,0.55]
[1745357901217,0.0594734,1721.4,1720.8,0.55]
[1745357901419,5.8082613,1721.7,1720.8,0.55]
[1745357901757,0.64029953,1721.6,1720.8,0.55]
[1745357902117,0.0594734,1721.6,1720.8,0.55]
[1745357902347,5.86735666,1721.8,1720.8,0.55]
[1745357902544,5.80834957,1721.7,1720.7,9.56963498]
[1745357902812,5.86815804,1721.6,1720.7,9.56963498]
[1745357903009,5.86815804,1721.6,1720.7,3.42687281]
[1745357903254,12.49603591,1721.5,1720.7,3.42687281]
[1745357903463,0.0594734,1721.4,1720.7,3.42687281]
[1745357904547,0.0594734,1721.4,1720.8,0.05810452]
[1745357905152,6.6868158,1721.5,1720.8,0.60810043]
[1745357905352,0.5868158,1721.5,1720.8,0.60810043]
[1745357905539,0.0594734,1721.7,1720.8,10.4216813]
[1745357905744,5.86789964,1721.7,1720.8,3.0]
[1745357905975,0.8256734,1721.7,1720.7,0.42687281]
[1745357906281,5.80956253,1721.3,1720.2,0.43145659]
[1745357906482,0.0594734,1721.2,1720.3,0.31291263]
[1745357906878,0.0594734,1721.2,1720.5,5.81225756]
[1745357907185,6.1,1721.3,1720.8,3.0]
[1745357907395,0.0594734,1721.7,1720.8,9.55411658]
[1745357907587,0.0594734,1721.7,1720.9,0.55]
[1745357907752,0.0594734,1721.7,1720.8,9.55411658]
[1745357907954,5.80867195,1721.6,1720.8,9.55411658]
[1745357908154,0.64034059,1721.5,1720.8,9.55411658]
[1745357908471,5.80944012,1721.4,1720.5,0.44115852]
[1745357908667,13.81521647,1721.3,1720.4,3.0]
[1745357908867,19.85567828,1721.3,1720.3,6.55411658]
[1745357909071,19.85567828,1721.3,1720.4,3.0]
[1745357909269,1.98556783,1721.2,1720.4,3.0]
[1745357909470,0.0594734,1721.1,1720.5,0.05811502]
[1745357909690,0.0594734,1721.1,1720.4,3.0]
[1745357911888,5.81171561,1720.7,1719.9,6.55411658]
[1745357912096,12.68778085,1721.0,1719.6,12.89380642]
[1745357912097,13.81650429,1720.6,1719.6,12.89380642]
[1745357912387,1.38165043,1720.5,1719.7,4.28938064]
[1745357912598,0.0594734,1720.4,1719.6,0.42565696]
[1745357912762,5.8132381,1720.3,1719.3,6.55411658]
[1745357912962,5.87288932,1720.2,1719.4,3.0]
[1745357913182,5.8140712,1720.0,1719.3,6.55411658]
[1745357913364,0.0594734,1719.9,1719.4,3.0]
[1745357913566,0.64682786,1719.9,1719.4,3.0]
[1745357913791,0.0594734,1719.9,1719.4,3.0]
[1745357914304,0.0594734,1720.0,1719.4,3.0]
[1745357915413,0.0594734,1720.0,1719.3,0.43906622]
[1745357915612,0.0594734,1720.2,1719.5,0.55]
[1745357915776,0.0594734,1720.4,1719.6,3.0]
[1745357915973,2.99167578,1720.4,1719.7,0.55]
[1745357916306,0.0594734,1720.4,1719.7,0.98514793]
[1745357916469,27.104,1720.5,1719.8,3.0]
[1745357918006,27.104,1720.5,1719.9,0.55]
[1745357918910,6.1,1721.0,1719.9,6.36409544]
[1745357919111,0.0594734,1720.9,1720.2,0.55]
[1745357919312,6.1594734,1721.1,1720.4,0.55]
[1745357919479,0.0594734,1721.1,1720.4,0.55]
[1745357919809,0.05125305,1721.1,1720.4,0.55]
[1745357920017,0.05125305,1721.1,1720.5,0.05811105]
[1745357920326,0.05125305,1721.1,1720.4,0.55]
[1745357920491,0.05125305,1721.1,1720.4,1.48629394]
[1745357920891,0.05125305,1721.1,1720.4,0.55]
[1745357921492,0.05125305,1721.1,1720.4,0.98767791]
[1745357921687,0.05125305,1721.1,1720.4,0.43767791]
[1745357921900,0.05125305,1721.1,1720.3,0.55]
[1745357922082,11.62091596,1721.1,1720.2,0.355]
[1745357922277,1.1620916,1721.0,1720.1,3.0]
[1745357922515,6.57341171,1720.8,1719.9,0.4335386]
[1745357922717,6.57341171,1720.8,1719.6,18.43125127]
[1745357922718,5.81205896,1720.6,1719.6,6.56613804]
[1745357922918,5.81205896,1720.6,1719.7,3.0]
[1745357922919,0.05125305,1720.5,1719.7,3.0]
[1745357923079,0.05125305,1720.5,1719.5,3.0]
[1745357923285,5.81344375,1720.2,1719.4,0.42574897]
[1745357923589,0.05125305,1720.1,1719.5,0.05814681]
[1745357923790,6.1,1720.6,1719.5,0.05814681]
[1745357923791,0.05125305,1720.5,1719.7,3.0]
[1745357923995,0.05125305,1720.5,1719.8,0.05813489]
[1745357924518,0.05125305,1720.5,1719.9,0.55]
[1745357925221,0.66637835,1720.5,1719.9,0.55]
[1745357925917,0.66637835,1720.5,1719.5,3.55]
[1745357925918,0.05125305,1720.5,1719.5,3.55]
[1745357926106,0.05125305,1720.5,1719.8,3.55]
[1745357926506,0.05125305,1720.6,1719.7,3.55]
[1745357926825,0.05125305,1720.6,1719.6,9.36498052]
[1745357927110,0.05125305,1720.6,1719.7,0.31452393]
[1745357927289,0.05125305,1720.6,1719.9,0.55]
[1745357928020,0.05125305,1720.6,1719.9,0.99420869]
[1745357930523,0.05125305,1720.6,1719.9,3.99420869]
[1745357930730,7.79555163,1721.2,1719.9,0.99420869]
[1745357931026,10.70376573,1723.1,1723.0,5.80383052]
[1745357931233,0.06974619,1723.1,1723.0,10.14652109]
[1745357931392,19.5703975,1723.9,1723.1,3.0]
[1745357931592,10.738,1723.4,1722.5,0.55]
[1745357931893,10.738,1723.4,1722.4,0.55]
[1745357932228,5.80282112,1723.3,1722.3,3.0]
[1745357932440,6.56529231,1723.2,1722.5,0.31236994]
[1745357932645,0.65652923,1723.1,1722.5,0.31236994]
[1745357932811,10.733,1723.1,1722.6,3.0]
[1745357933193,10.733,1723.3,1722.9,3.0]
[1745357933491,10.733,1723.4,1723.2,3.0]
[1745357933695,10.733,1723.4,1723.3,0.55]
[1745357933896,10.733,1723.6,1723.3,0.86236994]
[1745357934097,10.733,1723.6,1723.5,3.0]
[1745357935293,10.733,1723.7,1723.5,3.0]
[1745357935494,11.8063,1723.7,1723.5,3.0]
[1745357936409,10.729,1723.7,1723.5,3.0]
[1745357937212,0.4083975,1723.9,1723.5,3.0]
[1745357937760,0.4083975,1723.9,1723.8,0.55]
[1745357937895,10.729,1724.7,1724.4,3.0]
[1745357938095,1.0729,1724.6,1724.4,3.0]
[1745357938427,10.729,1724.7,1724.4,3.0]
[1745357939151,0.13883629,1724.6,1724.4,3.0]
[1745357939431,10.724,1724.7,1724.2,6.56613804]
[1745357939641,0.11569691,1724.6,1724.3,3.0]
[1745357940030,0.11569691,1724.6,1724.5,3.0]
[1745357940235,0.11569691,1724.6,1724.5,3.55]
[1745357940544,19.8954,1725.5,1724.6,0.55]
[1745357940842,10.724,1725.2,1724.9,3.0]
[1745357941326,10.724,1725.2,1724.8,6.56613804]
[1745357941641,0.14523061,1725.1,1724.8,6.56613804]
[1745357941805,10.724,1725.2,1724.8,6.56613804]
[1745357942006,1.20055906,1725.1,1724.8,6.56613804]
[1745357942201,1.20055906,1725.1,1724.6,6.56613804]
[1745357944008,1.20055906,1725.1,1724.6,6.62412022]
[1745357944202,0.12815906,1725.1,1724.7,3.0]
[1745357944434,10.72,1725.1,1724.7,3.0]
[1745357944637,10.717,1725.2,1725.0,3.0]
[1745357945140,10.717,1725.4,1725.0,3.0]
[1745357945506,0.4083975,1725.6,1725.2,6.56613804]
[1745357945706,11.1253975,1725.6,1725.2,6.56613804]
[1745357946246,11.1253975,1725.6,1725.3,3.0]
[1745357946904,0.779,1726.6,1725.6,14.675397]
[1745357947116,10.717,1726.7,1725.9,3.0]
[1745357947314,10.717,1726.7,1726.3,0.55]
[1745357947555,10.717,1726.7,1726.3,3.55]
[1745357947713,19.903,1727.0,1726.1,3.0]
[1745357947914,1.9903,1726.9,1726.5,3.55]
[1745357948115,1.9903,1726.9,1726.5,3.0]
[1745357948968,1.97956402,1726.9,1726.5,3.0]
[1745357949145,30.616,1727.0,1726.5,3.0]
[1745357950051,30.616,1727.0,1725.5,6.25]
[1745357950052,29.837,1727.0,1726.3,6.56613804]
[1745357950245,29.837,1727.0,1726.1,5.79336991]
[1745357950246,19.124,1727.0,1726.7,3.0]
[1745357950415,0.4083975,1727.3,1726.9,9.56613804]
[1745357950621,0.4083975,1727.3,1726.9,9.62403504]
[1745357951056,0.4083975,1727.3,1727.0,9.35269023]
[1745357951353,5.78986857,1727.2,1726.5,6.56613804]
[1745357951732,6.19794011,1727.3,1726.5,6.56613804]
[1745357951928,6.19805797,1727.3,1726.5,6.56613804]
[1745357952130,0.4083975,1727.3,1726.5,6.56613804]
[1745357952331,1.57013725,1727.3,1726.5,6.56613804]
[1745357952530,5.78979811,1727.2,1726.5,6.56613804]
[1745357952743,5.78989573,1727.2,1726.5,6.56613804]
[1745357953154,5.79036442,1727.1,1726.5,6.56613804]
[1745357953337,6.56936442,1727.1,1726.5,6.56613804]
[1745357953539,0.65693644,1727.0,1726.0,6.56613804]
[1745357953866,5.79287682,1726.3,1725.7,6.56613804]
[1745357954157,10.706,1726.2,1725.7,6.56613804]
[1745357954520,10.706,1726.2,1725.5,6.56613804]
[1745357955059,6.57345918,1725.8,1725.2,6.56613804]
[1745357955243,0.65734592,1725.7,1725.2,6.56613804]
[1745357955552,0.65734592,1725.7,1725.0,6.56613804]
[1745357955553,5.79511089,1725.6,1725.0,6.56613804]
[1745357955855,10.706,1725.5,1725.0,6.56613804]
[1745357956059,16.50158578,1725.5,1725.0,6.56613804]
[1745357956761,5.79622329,1725.3,1724.7,6.56613804]
[1745357956983,0.57962233,1725.2,1724.7,6.56613804]
[1745357957253,19.104,1725.4,1724.8,0.05797277]
[1745357957456,0.779,1725.8,1725.3,6.56613804]
[1745357957663,0.13045259,1725.7,1725.3,6.56613804]
[1745357957826,0.779,1725.8,1725.3,6.56613804]
[1745357959362,0.779,1725.8,1725.2,3.0]
[1745357959727,1.9275,1725.8,1725.3,0.30641854]
[1745357960144,1.9275,1725.8,1725.2,3.0]
[1745357961157,19.105,1726.1,1725.4,3.55]
[1745357961366,19.105,1726.1,1725.7,3.0]
[1745357961574,19.26756106,1726.1,1725.8,0.30820919]
[1745357961872,0.16256106,1726.1,1725.9,3.0]
[1745357962226,10.534,1726.7,1726.0,0.85820919]
[1745357962425,0.13661744,1726.6,1726.1,0.85820919]
[1745357962765,0.13661744,1726.6,1726.1,7.42434723]
[1745357962961,0.13661744,1726.6,1726.2,3.0]
[1745357963164,0.13661744,1726.6,1726.3,0.30820919]
[1745357963333,10.534,1726.7,1726.3,0.30820919]
[1745357963529,0.13857642,1726.5,1726.4,0.30820919]
[1745357963730,10.534,1726.7,1726.4,0.30820919]
[1745357963934,0.13857642,1726.5,1726.4,0.30820919]
[1745357964130,1.0534,1726.6,1726.4,0.30820919]
[1745357964330,0.14024636,1726.5,1726.4,0.30820919]
[1745357964670,5.93231123,1726.5,1726.4,0.30820919]
[1745357965676,6.59286939,1726.4,1725.3,6.56613804]
[1745357965894,0.14024636,1726.5,1725.9,6.56613804]
[1745357966027,0.17221215,1726.3,1726.0,3.05793102]
[1745357966226,11.3344,1726.7,1726.0,3.0]
[1745357966469,0.14001596,1726.6,1726.0,3.0]
[1745357966682,0.14001596,1726.6,1725.7,3.3082]
[1745357966965,5.79226628,1726.5,1725.7,3.3082]
[1745357967340,0.13851855,1726.4,1725.6,6.56613804]
[1745357967554,5.7932447,1726.2,1725.3,6.87433804]
[1745357967849,11.42937179,1726.1,1725.4,3.05794703]
[1745357968058,30.53137179,1726.1,1725.4,3.05794703]
[1745357968253,5.79466363,1725.8,1724.9,0.3082]
[1745357968454,5.92815338,1725.7,1724.9,0.3082]
[1745357968659,5.9280749,1725.7,1724.9,0.3082]
[1745357968827,0.59280749,1725.6,1725.0,0.05796352]
[1745357969031,0.13177592,1725.5,1725.2,3.0]
[1745357969264,19.8621,1726.1,1725.3,0.55]
[1745357969448,0.1355227,1726.0,1725.3,0.0579414]
[1745357969663,0.1355227,1726.0,1725.3,3.0579414]
[1745357970037,0.1355227,1726.0,1725.3,3.0]
[1745357970264,2.13528497,1726.0,1725.4,0.05794546]
[1745357970438,2.13528497,1726.0,1725.3,3.0]
[1745357971044,2.13528497,1726.0,1725.4,0.05794548]
[1745357971246,2.12691152,1726.0,1725.4,0.0579455]
[1745357971573,0.12714925,1726.0,1725.6,3.0]
[1745357971736,0.12714925,1726.0,1725.9,3.0]
[1745357971931,19.102,1726.9,1726.0,0.55]
[1745357972160,19.102,1726.9,1726.4,0.3082]
[1745357974750,5.79129897,1726.8,1726.1,0.3082]
[1745357974944,5.79129897,1726.8,1726.0,6.56613804]
[1745357974945,5.79259662,1726.4,1725.8,6.87433804]
[1745357975145,10.531,1726.3,1725.8,6.56613804]
[1745357975984,0.7601,1726.2,1725.5,6.56613804]
[1745357976340,5.79355515,1726.1,1725.5,6.56613804]
[1745357976537,19.67835552,1726.0,1725.3,0.5798]
[1745357976739,5.79420911,1725.9,1725.2,6.56613804]
[1745357977099,25.47212986,1726.0,1725.3,3.0]
[1745357977314,19.67835552,1726.0,1725.2,6.56613804]
[1745357977523,25.47226741,1726.0,1725.2,6.56613804]
[1745357977806,2.54722674,1725.9,1725.3,0.3114305]
[1745357978167,19.099,1726.0,1725.5,6.56613804]
[1745357978372,10.532,1726.4,1725.6,3.3114305]
[1745357978570,10.532,1726.4,1725.8,6.56613804]
[1745357978819,19.1,1726.7,1726.2,3.0]
[1745357979177,19.1,1726.7,1726.3,0.05791701]
[1745357979371,19.1,1726.7,1726.4,0.31094676]
[1745357980022,19.1,1726.7,1725.7,6.87433804]
[1745357980023,6.55216487,1726.5,1725.7,6.87433804]
[1745357980224,5.7928513,1726.3,1725.7,6.87433804]
[1745357980376,5.7928513,1726.3,1725.8,0.31131182]